bitfinex/quotes_SOLUSD_20240822
["timestamp","ask_amount","ask_price","bid_price","bid_amount"]
[1724325991463,24.59144637,144.09,144.03,21.38833436]
[1724325992373,14.18144637,144.09,144.03,21.38833436]
[1724325994468,14.18144637,144.09,144.03,20.0]
[1724325995788,14.18144637,144.09,144.05,20.0]
[1724325996951,7.24134637,144.09,144.05,20.0]
[1724325997261,7.24134637,144.09,144.06,1.3882006]
[1724325997468,32.9833,144.1,144.06,1.3882006]
[1724325997469,6.9397,144.1,144.06,1.3882006]
[1724325998455,6.9397,144.1,144.05,20.0]
[1724325998456,7.24008276,144.11,144.08,20.0]
[1724325999177,6.9389,144.12,144.08,20.0]
[1724326000359,40.77601973,144.13,144.09,1.38793952]
[1724326001264,40.77601973,144.13,144.08,21.38787744]
[1724326002474,40.77601973,144.13,144.08,20.0]
[1724326003249,30.36601973,144.13,144.08,20.0]
[1724326003449,30.36601973,144.13,144.09,1.38787836]
[1724326006676,30.36601973,144.13,144.09,1.3878202]
[1724326006878,30.36601973,144.13,144.08,20.0]
[1724326008781,30.36601973,144.13,144.09,1.38781872]
[1724326008965,30.36601973,144.13,144.08,20.0]
[1724326010371,6.9393,144.11,144.08,20.0]
[1724326014013,14.17906755,144.11,144.06,20.0]
[1724326015694,6.9397,144.1,144.06,20.0]
[1724326016681,10.41,144.08,144.04,20.0]
[1724326016889,17.3507,144.08,144.04,20.0]
[1724326019984,17.3507,144.08,144.02,20.0]
[1724326020181,6.9411,144.07,144.02,20.0]
[1724326022299,6.9407,144.08,144.02,20.0]
[1724326022485,6.9407,144.08,144.02,21.38840991]
[1724326024405,14.18273575,144.07,144.02,20.0]
[1724326028120,24.59273575,144.07,144.02,20.0]
[1724326031688,6.9415,144.06,144.02,20.0]
[1724326031897,17.65163575,144.07,144.02,20.0]
[1724326032088,6.9417,144.06,144.02,20.0]
[1724326034402,14.18273575,144.07,144.03,1.388469]
[1724326035717,14.18273575,144.07,144.02,20.0]
[1724326037318,6.9416,144.06,144.02,20.0]
[1724326039115,24.59273575,144.07,144.02,20.0]
[1724326040110,24.59273575,144.07,144.02,21.38850993]
[1724326040997,14.18273575,144.07,144.02,21.38850993]
[1724326041797,14.18273575,144.07,144.03,1.38842324]
[1724326044327,14.18273575,144.07,144.02,20.0]
[1724326046306,6.9415,144.06,144.02,20.0]
[1724326050140,6.9415,144.06,144.03,1.38853006]
[1724326050508,6.9415,144.06,144.02,20.0]
[1724326051220,14.18283575,144.07,144.02,20.0]
[1724326051734,6.9416,144.06,144.02,24.05540134]
[1724326051935,6.9416,144.06,144.02,20.0]
[1724326052709,6.942,144.05,144.0,20.0]
[1724326052950,17.352,144.05,144.0,20.0]
[1724326053314,24.59482999,144.05,144.0,20.0]
[1724326056740,17.65282999,144.05,144.0,20.0]
[1724326057457,6.9426,144.04,144.0,20.0]
[1724326058325,6.9426,144.04,143.98,20.0]
[1724326058524,17.65282999,144.05,143.98,20.0]
[1724326058525,6.943,144.03,143.98,20.0]
[1724326062430,6.9437,144.02,143.98,20.0]
[1724326062731,6.9437,144.02,143.96,20.0]
[1724326064105,6.9443,144.01,143.96,20.0]
[1724326064365,10.41,144.02,143.96,20.0]
[1724326064557,6.9441,144.01,143.96,20.0]
[1724326066320,6.9441,144.01,143.97,1.38906702]
[1724326067538,17.3535,144.02,143.98,20.0]
[1724326069960,6.944,144.01,143.96,20.0]
[1724326073938,14.18876474,144.01,143.96,20.0]
[1724326077361,6.9445,144.0,143.96,20.0]
[1724326077565,17.3545,144.0,143.96,20.0]
[1724326077944,6.9453,143.99,143.94,20.0]
[1724326078145,26.7109,144.0,143.94,20.0]
[1724326078762,10.41,143.98,143.94,20.0]
[1724326079861,17.3554,143.98,143.94,20.0]
[1724326080770,6.945,143.99,143.94,20.0]
[1724326080965,17.355,143.99,143.94,20.0]
[1724326081364,17.3549,143.99,143.94,20.0]
[1724326081555,6.9449,143.99,143.94,20.0]
[1724326081753,23.2454,144.0,143.94,20.0]
[1724326082253,23.2454,144.0,143.95,1.38926711]
[1724326082452,23.2454,144.0,143.96,20.0]
[1724326087075,7.24476474,144.01,143.97,1.38913131]
[1724326087267,7.24476474,144.01,143.96,21.38904408]
[1724326087466,14.18866474,144.01,143.96,21.38904408]
[1724326088255,14.18866474,144.01,143.96,20.0]
[1724326090977,14.18866474,144.01,143.97,1.38904498]
[1724326093184,14.18866474,144.01,143.96,20.0]
[1724326093878,7.24476474,144.01,143.99,20.0]
[1724326094058,6.943,144.03,143.99,20.0]
[1724326096696,17.353,144.03,143.99,20.0]
[1724326096896,6.9435,144.02,143.97,20.0]
[1724326098169,6.9441,144.01,143.97,20.0]
[1724326098372,6.9436,144.02,143.97,20.0]
[1724326099371,6.9436,144.02,143.98,5.1428986]
[1724326099696,10.41,144.03,143.98,5.1428986]
[1724326100875,6.9435,144.02,143.98,5.1428986]
[1724326102102,6.9435,144.02,143.97,20.0]
[1724326102270,6.9435,144.02,143.98,5.14254814]
[1724326102473,6.944,144.01,143.97,20.0]
[1724326102688,6.944,144.01,143.98,5.14193442]
[1724326102897,6.944,144.01,143.97,20.0]
[1724326103075,6.944,144.01,143.98,5.14265385]
[1724326103274,6.944,144.01,143.97,20.0]
[1724326103473,6.944,144.01,143.98,5.14358104]
[1724326103672,6.944,144.01,143.97,20.0]
[1724326104077,6.944,144.01,143.98,5.14407043]
[1724326104290,6.944,144.01,143.97,20.0]
[1724326104689,6.944,144.01,143.98,5.14434511]
[1724326104871,6.944,144.01,143.97,20.0]
[1724326105267,6.944,144.01,143.98,5.14434511]
[1724326105484,6.944,144.01,143.95,20.0]
[1724326105697,6.944,144.01,143.96,5.14506934]
[1724326105985,6.9444,144.0,143.97,5.14506934]
[1724326106186,6.9444,144.0,143.95,20.0]
[1724326106414,6.9444,144.0,143.96,5.14643098]
[1724326106585,6.9444,144.0,143.97,5.14643098]
[1724326106896,6.9444,144.0,143.95,20.0]
[1724326107100,6.9444,144.0,143.96,5.14667156]
[1724326107301,6.9444,144.0,143.97,5.14667156]
[1724326107685,6.9444,144.0,143.95,20.0]
[1724326107886,6.9444,144.0,143.96,5.14644732]
[1724326108116,6.9444,144.0,143.97,5.14644732]
[1724326108296,6.9444,144.0,143.95,20.0]
[1724326108497,6.9444,144.0,143.96,5.14641935]
[1724326108688,6.9444,144.0,143.97,5.14641935]
[1724326108887,6.9444,144.0,143.95,20.0]
[1724326109189,6.9444,144.0,143.96,5.14666269]
[1724326109389,6.9444,144.0,143.97,5.14666269]
[1724326109691,6.9444,144.0,143.95,20.0]
[1724326109891,6.9444,144.0,143.96,5.14759061]
[1724326110090,6.9444,144.0,143.97,5.14759061]
[1724326110419,6.9444,144.0,143.95,20.0]
[1724326110610,6.9444,144.0,143.96,5.1473035]
[1724326110923,6.9444,144.0,143.95,20.0]
[1724326111089,6.9444,144.0,143.96,5.14743254]
[1724326111290,6.9444,144.0,143.97,5.14743254]
[1724326111507,6.9444,144.0,143.95,20.0]
[1724326111719,6.9444,144.0,143.96,5.14760743]
[1724326111929,6.9444,144.0,143.97,5.14760743]
[1724326112107,6.9444,144.0,143.95,20.0]
[1724326112400,6.9444,144.0,143.96,5.14701836]
[1724326112608,6.9444,144.0,143.97,9.20331342]
[1724326112820,6.9444,144.0,143.98,4.05629506]
[1724326113001,6.9444,144.0,143.95,20.0]
[1724326113203,6.9444,144.0,143.96,9.20329484]
[1724326113531,6.9444,144.0,143.97,9.20329484]
[1724326113705,6.9444,144.0,143.98,4.05628491]
[1724326113906,6.9444,144.0,143.95,20.0]
[1724326114113,6.9444,144.0,143.96,9.20140746]
[1724326114419,6.9444,144.0,143.97,9.20185282]
[1724326114596,6.9444,144.0,143.98,4.05589855]
[1724326114799,6.9444,144.0,143.95,20.0]
[1724326114998,14.18977626,144.0,143.96,9.20268156]
[1724326115200,14.18977626,144.0,143.97,9.20268156]
[1724326115500,14.18977626,144.0,143.98,4.05601474]
[1724326115702,14.18977626,144.0,143.95,20.0]
[1724326116010,14.18977626,144.0,143.96,9.20230402]
[1724326116330,14.18977626,144.0,143.97,9.20230402]
[1724326116520,14.18977626,144.0,143.98,4.05584834]
[1724326116698,14.18977626,144.0,143.95,20.0]
[1724326116901,14.18977626,144.0,143.96,9.20253895]
[1724326117225,14.18977626,144.0,143.97,9.20253895]
[1724326117538,14.18977626,144.0,143.98,4.0559543]
[1724326117711,14.18977626,144.0,143.95,20.0]
[1724326118005,14.18977626,144.0,143.96,9.20258601]
[1724326118196,14.18977626,144.0,143.97,9.20258601]
[1724326118496,14.18977626,144.0,143.98,4.05597409]
[1724326118698,14.18977626,144.0,143.95,20.0]
[1724326118997,14.18977626,144.0,143.96,9.20260685]
[1724326119196,14.18977626,144.0,143.97,9.20260685]
[1724326119429,14.18977626,144.0,143.95,20.0]
[1724326119597,14.18977626,144.0,143.96,5.14662337]
[1724326119925,14.18977626,144.0,143.97,5.14662337]
[1724326120128,14.18977626,144.0,143.95,20.0]
[1724326120318,14.18977626,144.0,143.96,5.14667878]
[1724326120534,14.18977626,144.0,143.97,5.14667878]
[1724326120720,14.18977626,144.0,143.95,20.0]
[1724326120918,6.945,143.99,143.96,5.14667878]
[1724326121420,6.945,143.99,143.97,5.14667878]
[1724326121625,6.945,143.99,143.93,26.9476]
[1724326121919,6.945,143.99,143.94,5.14668484]
[1724326122111,6.945,143.99,143.95,5.14668484]
[1724326122312,6.945,143.99,143.96,5.14668484]
[1724326122531,6.945,143.99,143.97,5.14668484]
[1724326122731,6.945,143.99,143.93,26.9476]
[1724326122932,6.945,143.99,143.94,5.14735908]
[1724326123136,6.945,143.99,143.95,5.14735908]
[1724326123340,6.945,143.99,143.96,5.14735908]
[1724326123508,6.945,143.99,143.97,5.14735908]
[1724326123709,7.24537626,144.0,143.95,20.0]
[1724326123943,7.24537626,144.0,143.96,6.53648548]
[1724326124138,7.24537626,144.0,143.97,5.14737056]
[1724326124326,7.24537626,144.0,143.96,1.38911492]
[1724326124907,7.24537626,144.0,143.97,5.1475819]
[1724326125309,14.18987626,144.0,143.97,5.1475819]
[1724326126225,6.9449,143.99,143.97,5.1475819]
[1724326130319,6.9454,143.98,143.97,5.1475819]
[1724326132743,6.9454,143.98,143.93,20.0]
[1724326143440,10.41,143.97,143.93,20.0]
[1724326144143,17.65684915,143.97,143.93,20.0]
[1724326144441,7.24684915,143.97,143.93,20.0]
[1724326148626,7.24684915,143.97,143.89,20.0]
[1724326148627,17.357,143.95,143.89,20.0]
[1724326148821,6.9473,143.94,143.89,20.0]
[1724326149241,6.9473,143.94,143.85,6.2023]
[1724326149242,16.1757,143.96,143.91,20.0]
[1724326149447,7.24684915,143.97,143.93,20.0]
[1724326149635,7.24684915,143.97,143.94,1.38926344]
[1724326150331,7.24684915,143.97,143.95,5.14955099]
[1724326150543,7.24684915,143.97,143.94,1.38926344]
[1724326150740,7.24684915,143.97,143.95,5.14955099]
[1724326150936,7.24684915,143.97,143.94,1.38926344]
[1724326151138,7.24684915,143.97,143.95,25.14952386]
[1724326151327,7.24684915,143.97,143.95,20.0]
[1724326155553,7.24684915,143.97,143.93,20.0]
[1724326155875,14.19274915,143.97,143.94,5.14930233]
[1724326156154,14.19274915,143.97,143.95,5.14930233]
[1724326156338,14.19274915,143.97,143.93,20.0]
[1724326156662,14.19274915,143.97,143.94,5.14933367]
[1724326156950,14.19274915,143.97,143.95,5.14933367]
[1724326157149,14.19274915,143.97,143.93,20.0]
[1724326157362,14.19274915,143.97,143.94,5.14932946]
[1724326157650,14.19274915,143.97,143.95,5.14932946]
[1724326157858,14.19274915,143.97,143.95,5.14933032]
[1724326158070,14.19274915,143.97,143.93,20.0]
[1724326159665,7.24684915,143.97,143.93,20.0]
[1724326165169,14.19274915,143.97,143.93,20.0]
[1724326170762,7.24684915,143.97,143.95,20.0]
[1724326180176,6.9451,143.99,143.95,20.0]
[1724326181061,7.2199184,144.0,143.99,20.0]
[1724326181267,23.4861,144.03,143.99,20.0]
[1724326181566,6.9436,144.02,143.99,20.0]
[1724326181949,23.4859,144.03,143.99,20.0]
[1724326182173,16.5428,144.03,144.01,20.0]
[1724326183083,7.22729208,144.04,144.01,20.0]
[1724326183382,7.22729208,144.04,144.03,20.0]
[1724326183677,6.9416,144.06,144.03,20.0]
[1724326187356,22.3853,144.07,144.03,20.0]
[1724326188856,15.4442,144.07,144.03,20.0]
[1724326189063,14.17417395,144.08,144.03,20.0]
[1724326189273,14.17417395,144.08,144.04,1.38834185]
[1724326189473,7.23347395,144.08,144.05,20.0]
[1724326189658,6.9401,144.09,144.05,20.0]
[1724326190284,22.70717583,144.11,144.05,20.0]
[1724326190659,6.9397,144.1,144.05,20.0]
[1724326191082,17.3502,144.09,144.05,20.0]
[1724326191587,6.9402,144.09,144.05,20.0]
[1724326192858,6.9409,144.08,144.03,20.0]
[1724326195765,6.9409,144.08,144.04,1.3883907]
[1724326196086,6.9409,144.08,144.03,20.0]
[1724326197869,6.9402,144.09,144.05,20.0]
[1724326199869,33.11717583,144.11,144.07,20.0]
[1724326199870,6.9397,144.1,144.07,20.0]
[1724326200496,33.11717583,144.11,144.05,20.0]
[1724326200680,6.9405,144.09,144.05,20.0]
[1724326204094,6.9406,144.08,144.03,20.0]
[1724326204570,6.941,144.07,144.03,20.0]
[1724326204773,6.9406,144.08,144.04,1.38845003]
[1724326204991,6.9406,144.08,144.03,20.0]
[1724326205671,6.9406,144.08,144.03,21.3883228]
[1724326206003,24.58512639,144.09,144.05,20.0]
[1724326207201,7.23492639,144.09,144.07,20.0]
[1724326207380,6.9397,144.1,144.07,20.0]
[1724326207876,32.8291,144.11,144.07,20.0]
[1724326208083,22.4191,144.11,144.07,20.0]
[1724326208903,22.4191,144.11,144.07,21.38805007]
[1724326209093,6.9392,144.11,144.07,21.38805007]
[1724326210388,6.9392,144.11,144.07,20.0]
[1724326210672,24.58607003,144.12,144.07,20.0]
[1724326211197,14.17607003,144.12,144.09,20.0]
[1724326213402,7.23737003,144.12,144.1,1.38783985]
[1724326213601,6.9378,144.14,144.1,1.38783985]
[1724326213778,6.9378,144.14,144.09,20.0]
[1724326215497,6.9388,144.12,144.09,20.0]
[1724326215706,10.41,144.13,144.07,20.0]
[1724326216606,6.9388,144.12,144.09,20.0]
[1724326218290,6.9383,144.13,144.09,20.0]
[1724326218484,6.9383,144.13,144.1,1.38779993]
[1724326219181,6.9383,144.13,144.09,20.0]
[1724326221087,6.9383,144.13,144.1,1.38773423]
[1724326221293,17.3478,144.14,144.1,1.38773423]
[1724326221991,17.3478,144.14,144.09,20.0]
[1724326224216,6.9383,144.13,144.09,20.0]
[1724326225483,10.41,144.14,144.09,20.0]
[1724326226107,6.9384,144.13,144.09,20.0]
[1724326226294,6.9388,144.12,144.09,20.0]
[1724326229513,7.23901339,144.15,144.1,1.38787351]
[1724326229716,17.64901339,144.15,144.1,1.38787351]
[1724326229896,6.9381,144.14,144.09,20.0]
[1724326230208,6.9381,144.13,144.09,20.0]
[1724326230410,17.64901339,144.15,144.09,20.0]
[1724326230621,6.9377,144.14,144.11,20.0]
[1724326230918,14.17631339,144.15,144.11,21.38767035]
[1724326233834,7.23901339,144.15,144.11,21.38767035]
[1724326234126,7.23901339,144.15,144.12,45.0]
[1724326237336,14.17621339,144.15,144.12,45.0]
[1724326238037,14.17621339,144.15,144.13,20.0]
[1724326238423,7.23901339,144.15,144.13,20.0]
[1724326238623,6.9376,144.14,144.12,45.0]
[1724326238814,17.64901339,144.15,144.12,45.0]
[1724326239017,24.58651339,144.15,144.11,20.0]
[1724326240839,7.23901339,144.15,144.11,20.0]
[1724326241021,7.23901339,144.15,144.11,21.38756399]
[1724326242435,14.17631339,144.15,144.13,20.0]
[1724326244129,7.23901339,144.15,144.13,20.0]
[1724326245432,14.17631339,144.15,144.11,20.0]
[1724326245944,14.17631339,144.15,144.11,21.38757091]
[1724326246941,14.17631339,144.15,144.11,20.0]
[1724326247743,7.23901339,144.15,144.11,20.0]
[1724326247943,6.9378,144.14,144.11,20.0]
[1724326252425,24.58631339,144.15,144.12,1.38765428]
[1724326252943,14.17631339,144.15,144.12,1.38765428]
[1724326253443,14.17631339,144.15,144.13,20.0]
[1724326253851,14.17631339,144.15,144.13,21.38750049]
[1724326254145,14.17631339,144.15,144.13,20.0]
[1724326254917,7.23901339,144.15,144.13,20.0]
[1724326255123,7.23901339,144.15,144.13,21.3874495]
[1724326255651,7.23901339,144.15,144.14,45.0]
[1724326256837,7.23901339,144.15,144.13,20.0]
[1724326258727,14.17621339,144.15,144.11,20.0]
[1724326258925,6.9377,144.14,144.11,20.0]
[1724326259355,17.3477,144.14,144.09,20.0]
[1724326259558,6.9385,144.13,144.09,20.0]
[1724326261338,17.3486,144.12,144.07,20.0]
[1724326261637,6.9392,144.11,144.07,20.0]
[1724326261841,10.41,144.12,144.07,20.0]
[1724326261842,17.35,144.1,144.07,20.0]
[1724326262630,6.9402,144.09,144.05,20.0]
[1724326262824,10.41,144.08,144.03,20.0]
[1724326263132,6.9411,144.07,144.03,20.0]
[1724326263536,10.41,144.06,144.03,20.0]
[1724326263924,17.3515,144.06,144.01,20.0]
[1724326264534,6.942,144.05,144.01,20.0]
[1724326265459,6.9425,144.04,144.01,20.0]
[1724326265662,10.41,144.04,143.99,20.0]
[1724326265826,6.943,144.03,143.99,20.0]
[1724326266230,17.3526,144.04,143.99,20.0]
[1724326275682,10.41,144.04,143.99,20.0]
[1724326276584,6.9431,144.03,143.99,20.0]
[1724326280065,17.3535,144.02,143.97,20.0]
[1724326280392,6.944,144.01,143.97,20.0]
[1724326282492,14.17597953,144.01,143.97,20.0]
[1724326282882,6.9446,144.0,143.97,20.0]
[1724326283798,6.9446,144.0,143.95,20.0]
[1724326285069,6.9446,144.0,143.95,21.38910559]
[1724326285268,7.23197953,144.01,143.98,20.0]
[1724326286386,7.23197953,144.01,143.96,20.0]
[1724326288390,14.17597953,144.01,143.96,20.0]
[1724326289378,10.41,144.0,143.94,20.0]
[1724326290864,6.9449,143.99,143.94,20.0]
[1724326292785,7.23280908,143.99,143.96,20.0]
[1724326293581,7.23280908,143.99,143.96,21.38914124]
[1724326293780,6.9441,144.01,143.96,21.38914124]
[1724326293969,14.17655501,144.01,143.96,21.38914124]
[1724326295189,7.23245501,144.01,143.98,20.0]
[1724326295495,22.0092,144.02,143.98,20.0]
[1724326295695,15.0656,144.02,143.99,1.38892523]
[1724326296489,15.0656,144.02,143.98,20.0]
[1724326296691,22.0091,144.02,143.98,20.0]
[1724326298495,10.41,144.01,143.96,20.0]
[1724326298704,10.41,144.01,143.97,45.0]
[1724326299201,22.0091,144.02,143.98,20.0]
[1724326301504,15.0656,144.02,143.98,20.0]
[1724326301713,15.0656,144.02,143.99,45.0]
[1724326302981,32.4193,144.02,143.98,20.0]
[1724326303508,32.4193,144.02,143.96,20.0]
[1724326303705,32.4193,144.02,143.97,45.0]
[1724326306007,7.2359542,144.01,143.97,45.0]
[1724326306186,7.2359542,144.01,143.98,20.0]
[1724326306774,32.4193,144.02,143.98,20.0]
[1724326307805,6.9439,144.01,143.98,20.0]
[1724326308717,6.9439,144.01,143.97,45.0]
[1724326309009,32.4192,144.02,143.97,45.0]
[1724326309885,32.4192,144.02,143.98,21.73794496]
[1724326310081,32.4192,144.02,143.99,1.73794496]
[1724326310287,32.4192,144.02,144.0,1.73794433]
[1724326310606,32.4192,144.02,143.98,20.0]
[1724326310909,32.4192,144.02,143.99,1.73794443]
[1724326311203,32.4192,144.02,144.0,1.73794443]
[1724326311394,32.4192,144.02,143.98,20.0]
[1724326311826,32.4192,144.02,143.99,1.73794465]
[1724326312294,6.9439,144.01,144.0,1.73794465]
[1724326314386,6.9451,143.99,143.94,20.0]
[1724326314587,17.3551,143.99,143.95,1.73803005]
[1724326314786,17.3551,143.99,143.96,1.73803005]
[1724326314982,17.3551,143.99,143.97,1.73803005]
[1724326315187,17.3551,143.99,143.98,1.73809712]
[1724326315613,6.9445,144.0,143.98,1.73809712]
[1724326315907,17.3545,144.0,143.96,20.0]
[1724326316211,17.3545,144.0,143.97,1.73799664]
[1724326316405,17.3545,144.0,143.98,1.73799664]
[1724326316615,17.3545,144.0,143.99,1.73799664]
[1724326318194,6.9451,143.99,143.94,20.0]
[1724326318397,6.9451,143.99,143.95,1.73812488]
[1724326318601,6.9451,143.99,143.96,1.73812488]
[1724326318793,6.9451,143.99,143.97,1.73812488]
[1724326318984,6.9451,143.99,143.98,1.73812488]
[1724326319189,6.9451,143.99,143.94,20.0]
[1724326319418,6.9451,143.99,143.98,1.73812551]
[1724326319787,6.9451,143.99,143.94,20.0]
[1724326324197,6.9451,143.99,143.95,1.38927592]
[1724326324396,7.23880356,144.01,143.96,20.0]
[1724326324588,14.18300356,144.01,143.96,20.0]
[1724326329021,17.3544,144.0,143.94,20.0]
[1724326329209,10.41,143.98,143.94,20.0]
[1724326329388,10.41,143.98,143.92,42.0921]
[1724326329592,10.41,143.96,143.92,20.0]
[1724326330584,17.3554,143.98,143.92,20.0]
[1724326332000,17.3554,143.98,143.89,16.9934]
[1724326332001,26.2106,143.98,143.9,20.0]
[1724326332204,10.41,143.95,143.9,20.0]
[1724326333218,17.356,143.97,143.9,20.0]
[1724326333721,17.356,143.97,143.91,45.0]
[1724326333901,6.9464,143.96,143.91,45.0]
[1724326334104,10.41,143.95,143.91,45.0]
[1724326336321,6.946,143.97,143.91,45.0]
[1724326336494,10.41,143.95,143.91,45.0]
[1724326337824,10.41,143.93,143.87,26.9505]
[1724326338130,10.41,143.93,143.88,20.0]
[1724326338829,10.41,143.93,143.87,20.0]
[1724326339007,23.5182,143.94,143.87,20.0]
[1724326339217,23.5182,143.94,143.88,45.0]
[1724326340110,7.21669242,143.93,143.88,45.0]
[1724326342630,17.62669242,143.93,143.88,45.0]
[1724326344354,7.21669242,143.93,143.88,45.0]
[1724326345432,7.21669242,143.93,143.88,46.38993754]
[1724326345971,7.21669242,143.93,143.89,20.0]
[1724326346261,7.21669242,143.93,143.9,46.38971328]
[1724326346461,7.21669242,143.93,143.91,20.0]
[1724326346762,16.5709,143.94,143.92,45.0]
[1724326347466,16.2208,143.97,143.92,45.0]
[1724326347636,16.2208,143.97,143.92,46.38951819]
[1724326347838,16.2208,143.97,143.92,56.79951819]
[1724326348441,16.2208,143.97,143.92,55.41]
[1724326349139,16.2208,143.97,143.94,10.41]
[1724326349369,16.2208,143.97,143.95,45.0]
[1724326353667,16.2208,143.97,143.93,45.0]
[1724326354262,16.2208,143.97,143.93,65.0]
[1724326362475,16.2208,143.97,143.93,66.38941407]
[1724326362770,7.20838083,143.98,143.94,10.41]
[1724326362973,21.7509,144.0,143.95,45.0]
[1724326363342,15.1483,144.0,143.96,11.79928551]
[1724326363547,15.1483,144.0,143.97,45.0]
[1724326371967,15.1483,144.0,143.96,45.0]
[1724326372282,7.18720661,144.01,143.98,10.41]
[1724326372461,6.5768,144.03,143.99,45.0]
[1724326374171,22.30854278,144.04,143.99,45.0]
[1724326376173,22.30854278,144.04,143.99,66.38894715]
[1724326376381,22.30854278,144.04,143.99,65.0]
[1724326377701,15.1185,144.04,143.99,65.0]
[1724326381662,15.1185,144.04,143.99,45.0]
[1724326382692,15.1185,144.04,143.99,65.0]
[1724326383994,15.1185,144.04,143.99,45.0]
[1724326384493,15.1185,144.04,143.99,65.0]
[1724326385901,33.9773,144.07,144.0,10.41]
[1724326386196,23.5673,144.07,144.01,45.0]
[1724326387387,6.9415,144.06,144.01,45.0]
[1724326388473,6.9421,144.05,143.97,26.2834]
[1724326388677,17.47719,144.06,143.98,46.73795028]
[1724326389000,7.17686891,144.05,143.99,1.38885293]
[1724326390198,7.17686891,144.05,144.0,10.41]
[1724326390372,7.17686891,144.05,144.01,45.0]
[1724326391409,7.17686891,144.05,144.01,65.0]
[1724326394523,16.6261,144.07,144.01,65.0]
[1724326394809,30.74204847,144.07,144.01,65.0]
[1724326396214,30.74204847,144.07,144.01,45.0]
[1724326396507,6.9416,144.06,144.01,45.0]
[1724326396903,23.80054847,144.07,144.01,45.0]
[1724326396904,30.74164847,144.07,144.01,45.0]
[1724326397220,23.80054847,144.07,144.01,45.0]
[1724326397390,23.80054847,144.07,144.01,65.0]
[1724326397593,7.17444847,144.07,144.02,10.41]
[1724326397786,6.031,144.09,144.03,45.0]
[1724326397986,25.905,144.1,144.04,20.0]
[1724326397987,7.17308798,144.08,144.04,20.0]
[1724326398185,7.17308798,144.08,144.05,45.0]
[1724326398686,7.17308798,144.08,144.02,20.0]
[1724326398908,7.17308798,144.08,144.03,45.0]
[1724326402716,14.11358798,144.08,144.01,16.8082]
[1724326403108,6.9412,144.07,144.0,20.0]
[1724326403489,6.9412,144.07,144.01,1.73760156]
[1724326403795,14.11378798,144.08,144.0,20.0]
[1724326404001,14.11378798,144.08,144.01,1.73760125]
[1724326404192,14.11378798,144.08,144.0,20.0]
[1724326404784,14.11378798,144.08,144.01,45.0]
[1724326407013,7.17308798,144.08,144.02,20.0]
[1724326407220,7.17308798,144.08,144.03,45.0]
[1724326411694,7.17308798,144.08,144.03,55.41]
[1724326412926,7.17308798,144.08,144.03,56.79841315]
[1724326413101,7.17308798,144.08,144.05,10.41]
[1724326413317,15.495,144.1,144.06,45.0]
[1724326413836,22.4347,144.1,144.06,45.0]
[1724326414035,6.9401,144.09,144.03,10.41]
[1724326414213,6.9401,144.09,144.04,45.0]
[1724326414527,6.9401,144.09,144.03,45.0]
[1724326414903,6.9401,144.09,144.02,45.0]
[1724326415537,6.9406,144.08,144.02,45.0]
[1724326415723,17.47609,144.08,144.02,45.0]
[1724326416029,17.47609,144.08,144.01,45.0]
[1724326418240,10.53549,144.08,144.01,45.0]
[1724326418955,6.9411,144.07,144.01,45.0]
[1724326423031,22.0078,144.06,144.01,45.0]
[1724326423229,22.0078,144.06,144.0,45.0]